Cogmind - Beta 9.4 @@@ ROGUE MODE // 2020.03.02 @ 17:08:05 Player: PlasticHeart Result: Self-destructed Performance ------------- Evolutions (4) 2000 Regions Visited (15) 3000 Robots Destroyed (110) 550 Value Destroyed (1983) 1983 Prototype IDs (57) 1140 Alien Tech Used (0) 0 Bonus (886) 886 TOTAL SCORE: 9559 Bonus ------- High Alert Combat Kills 76 Follower Combat Kills 248 Aligned with FarCom 300 Met Data Miner 300 Friendly Fire -38 Cogmind --------- Core Integrity 850/850 Matter 300/300 Energy 192/200 System Corruption 0% Temperature Cool (8) Movement Flying (26) Location -6/Factory Parts ------- > --- POWER (2) -------- Light Deuterium Engine Light Fission Core > --- PROPULSION (4) --- Improved Flight Unit Improved Flight Unit Improved Flight Unit Improved VTOL Module > --- UTILITY (7) ------ Medium Storage Unit Structural Scanner Advanced Signal Interpreter Hacking Suite Hacking Suite System Shield Improved System Shield > --- WEAPON (2) ------- Improved Datajack Katana > --- INVENTORY (8) ---- Light Particle Reactor Cooled VTOL Module Experimental Sensor Array Advanced Terrain Scan Processor Light Regenerative Plating Improved Hacking Suite Component Analysis Suite Guided Plasma Cannon Peak State ------------ > --- POWER ------------ Light Deuterium Engine Light Fission Core > --- PROPULSION ------- Improved Flight Unit Improved Flight Unit Improved Flight Unit Improved VTOL Module > --- UTILITY ---------- Medium Storage Unit Structural Scanner Advanced Signal Interpreter Hacking Suite Hacking Suite System Shield Improved System Shield > --- WEAPON ----------- Cooled Phase Cannon Improved Datajack > --- INVENTORY -------- Light Particle Reactor Cooled VTOL Module Experimental Sensor Array Advanced Terrain Scan Processor Light Regenerative Plating Component Analysis Suite Drone Bay Guided Plasma Cannon [Rating: 55] Favorites ----------- Power Light Deuterium Engine Engine Light Deuterium Engine Power Core Micro Nuclear Core Propulsion Improved Flight Unit Wheel Wheel Flight Unit Improved Flight Unit Utility Hacking Suite Device Structural Scanner Storage Large Storage Unit Processor Advanced Signal Interpreter Hackware Hacking Suite Protection Improved Medium Armor Plating Weapon Improved Datajack Energy Gun Advanced Beam Rifle Energy Cannon Beam Cannon Ballistic Gun Improved Assault Rifle Ballistic Cannon Light Cannon Launcher Mini Grenade Launcher Slashing Weapon Katana Special Melee Weapon Improved Datajack Build | -11 -10 -10 -9 -9 -9 -8 -8 -7 -7 -7 -7 -6 -6 -6 -6 ------- Run | Scr Mat Min Mat Min Exi Min Mat Fac Low Low Dat Pro Fac Was Fac Slots Evolved 8 | . . . 2 . . . 2 2 . . . . 2 . . Power 1 | . . . . . . . . 1 . . . . . . . Propulsion 2 | . . . 1 . . . 1 . . . . . . . . Utility 5 | . . . 1 . . . 1 1 . . . . 2 . . Weapon . | . . . . . . . . . . . . . . . . Parts Attached 116 | 6 12 7 23 2 1 3 15 17 3 1 2 2 14 8 . Power 9 | 1 . . 2 . . . 1 3 . . . . 2 . . Engine 6 | 1 . . 2 . . . . 2 . . . . 1 . . Core 3 | . . . . . . . 1 1 . . . . 1 . . Reactor . | . . . . . . . . . . . . . . . . Propulsion 31 | 2 2 . 10 . . 2 5 4 . . . 1 3 2 . Treads . | . . . . . . . . . . . . . . . . Leg . | . . . . . . . . . . . . . . . . Wheel 19 | 2 2 . 9 . . 2 4 . . . . . . . . Hover . | . . . . . . . . . . . . . . . . Flight 12 | . . . 1 . . . 1 4 . . . 1 3 2 . Utility 34 | 1 5 . 4 . . . 2 7 3 . 2 1 7 2 . Device 14 | . . . . . . . . 3 3 . 2 1 3 2 . Storage 10 | 1 4 . 3 . . . 1 1 . . . . . . . Processor 3 | . . . . . . . . 1 . . . . 2 . . Hackware 4 | . . . . . . . . 2 . . . . 2 . . Protection 3 | . 1 . 1 . . . 1 . . . . . . . . Artifact . | . . . . . . . . . . . . . . . . Weapon 42 | 2 5 7 7 2 1 1 7 3 . 1 . . 2 4 . Energy Gun 7 | 1 3 . . . . . 3 . . . . . . . . Energy Cannon 3 | . . 1 1 . . . . . . . . . . 1 . Ballistic Gun 10 | 1 1 . 4 1 . 1 2 . . . . . . . . Ballistic Cannon 5 | . 1 3 . . . . . . . . . . . 1 . Launcher 10 | . . 3 2 1 1 . 2 1 . . . . . . . Special Weapon . | . . . . . . . . . . . . . . . . Impact Weapon . | . . . . . . . . . . . . . . . . Slashing Weapon 5 | . . . . . . . . 1 . 1 . . 1 2 . Piercing Weapon . | . . . . . . . . . . . . . . . . Special Melee Weapon 2 | . . . . . . . . 1 . . . . 1 . . Unidentified Prototypes 4 | . . . 1 . . . 2 . . . . . . 1 . Parts Lost 6 | . . . 3 . . . 2 . . . . 1 . . . Power 1 | . . . . . . . 1 . . . . . . . . Propulsion 3 | . . . 3 . . . . . . . . . . . . Utility 2 | . . . . . . . 1 . . . . 1 . . . Weapon . | . . . . . . . . . . . . . . . . Highest Loss Streak 2 | . . . 1 . . . 2 . . . . 1 . . . Average Slot Usage (%) 96 | . 95 100 98 100 100 100 82 97 100 100 100 99 97 100 100 Engine 8 | . 14 14 11 11 11 11 6 8 7 7 7 7 5 6 6 Core 3 | . . . . . . . 1 5 7 7 7 7 6 6 6 Wheel 13 | . 28 28 32 33 33 33 19 . . . . . . . . Flight 14 | . . . . . . . . 29 30 30 30 30 25 26 26 Device 3 | . . . . . . . . 7 7 7 7 6 6 6 6 Storage 16 | . 18 28 28 33 33 33 27 7 7 7 7 7 6 6 6 Processor 3 | . . . . . . . . 6 7 7 7 7 6 6 6 Hackware 10 | . . . . . . . . 12 15 15 15 15 23 26 26 Protection 2 | . 5 . 4 . . . 8 . . . . . . . . Energy Gun 2 | . 14 4 . . . . 7 . . . . . . . . Energy Cannon 1 | . . 9 3 . . . . . . . . . . . . Ballistic Gun 5 | . 6 . 14 22 22 22 10 . . . . . . . . Ballistic Cannon 1 | . 7 12 3 . . . . . . . . . . . . Slashing Weapon 3 | . . . . . . . . 6 7 7 7 7 6 5 6 Special Melee Weapon 3 | . . . . . . . . 6 7 7 7 7 5 6 6 Naked Turns . | . . . . . . . . . . . . . . . . Heaviest Build 110 | 10 40 41 94 95 95 94 110 23 24 25 25 25 24 24 24 Greatest Support 56 | 26 26 26 36 36 36 36 56 26 26 26 26 26 24 25 24 Greatest Overweight (x) 3 | 1 1 1 2 2 2 2 3 . . . . . . . . Average Overweight (x) . | . . 1 1 2 2 2 1 . . . . . . . . Largest Inventory Capacity 32 | 6 16 16 26 26 26 26 32 28 8 8 8 8 8 8 8 Average Capacity 14 | 5 8 16 19 26 26 26 24 8 8 8 8 8 8 8 8 Most Carried 26 | 6 14 15 22 22 23 26 24 24 8 8 8 8 8 8 8 Average Carried 12 | 2 7 14 17 22 22 23 23 7 8 8 8 7 7 7 7 Final Capacity 26 | 6 16 16 26 26 26 26 24 8 8 8 8 8 8 8 8 Final Carried 24 | 3 14 14 22 22 23 23 24 8 8 8 8 6 8 8 8 Class Distribution -------------------- 46% | Hacker-Sprinter 31% | Hauler-Mutant 14% | Mutant 3% | Scavenger-Mutant Dominant Class ---------------- Mutant | -10/Materials Mutant | -10/Mines Hauler-Mutant | -9/Materials Hauler-Mutant | -9/Mines Hauler-Mutant | -9/Exiles Hauler-Mutant | -8/Mines Hauler-Mutant | -8/Materials Hacker-Sprinter | -7/Factory Hacker-Sprinter | -7/Lower Caves Hacker-Sprinter | -7/Lower Caves Hacker-Sprinter | -7/Data Miner Hacker-Sprinter | -6/Proximity Caves Hacker-Sprinter | -6/Factory Hacker-Sprinter | -6/Waste Hacker-Sprinter | -6/Factory Resources | -11 -10 -10 -9 -9 -9 -8 -8 -7 -7 -7 -7 -6 -6 -6 -6 ----------- Run | Scr Mat Min Mat Min Exi Min Mat Fac Low Low Dat Pro Fac Was Fac Matter Collected 2227 | 267 168 86 600 26 . 76 503 172 30 10 . 20 161 108 . Remotely . | . . . . . . . . . . . . . . . . Salvage Created 3671 | 58 274 179 1004 . . 114 1095 293 98 22 . . 534 . . Parts 231 | 1 25 6 82 . . 7 63 34 . . . . 13 . . Haulers Intercepted 15 | . 1 . 5 . . . 3 3 . . . . 3 . . Recyclers Shooed 5 | . . 1 . . . 1 1 1 . . . . 1 . . Parts Field Recycled . | . . . . . . . . . . . . . . . . Retrieved Matter . | . . . . . . . . . . . . . . . . Parts Self-Destructed 5 | . . . . . . . . . 3 2 . . . . . Prevented 2 | . . . . . . . . . 2 . . . . . . Kills | -11 -10 -10 -9 -9 -9 -8 -8 -7 -7 -7 -7 -6 -6 -6 -6 ------- Run | Scr Mat Min Mat Min Exi Min Mat Fac Low Low Dat Pro Fac Was Fac Combat Hostiles Destroyed 54 | . 6 5 18 . . . 24 . . 1 . . . . . Melee 1 | . . . . . . . . . . 1 . . . . . Guns 26 | . 5 . 5 . . . 16 . . . . . . . . Cannons 7 | . 1 . 6 . . . . . . . . . . . . AOE 20 | . . 5 7 . . . 8 . . . . . . . . Classes Destroyed 14 | 1 7 1 3 . . . 2 . . . . . . . . Worker 14 | . 1 . 3 . . . 5 2 . . . . 3 . . Builder 4 | . 1 . . . . 1 . 2 . . . . . . . Tunneler 3 | . . 1 2 . . . . . . . . . . . . Hauler 15 | . 1 . 5 . . . 3 3 . . . . 3 . . Recycler 7 | 1 . 2 2 . . 1 . . . . . . 1 . . Mechanic 2 | . 1 . 1 . . . . . . . . . . . . Operator 6 | . 1 . 2 . . . . 3 . . . . . . . Watcher 3 | . . . 1 . . . . 1 . . . . 1 . . Swarmer 26 | . 3 5 10 . . . 7 . . 1 . . . . . Grunt 14 | . 3 . 4 . . . 7 . . . . . . . . Duelist 1 | . . . . . . . 1 . . . . . . . . Sentry 12 | . . . 4 . . . 8 . . . . . . . . Hunter 1 | . . . . . . . 1 . . . . . . . . Zionite 1 | . . . 1 . . . . . . . . . . . . Packrat 1 | . . . . . . . . . 1 . . . . . . Best Kill Streak 9 | 1 3 2 7 . . 2 9 3 . 1 . . 2 . . Combat Bots Only 6 | . 3 2 4 . . . 6 . . 1 . . . . . Max Kills in Single Turn 3 | 1 2 2 3 . . 1 3 1 1 1 . . 1 . . Gunslinging . | . . . . . . . . . . . . . . . . Exploded 3 | . . 2 2 . . . 3 . . . . . . . . Melee 1 | . . . . . . . . . . 1 . . . . . Uniques/NPCs Destroyed . | . . . . . . . . . . . . . . . . Combat | -11 -10 -10 -9 -9 -9 -8 -8 -7 -7 -7 -7 -6 -6 -6 -6 -------- Run | Scr Mat Min Mat Min Exi Min Mat Fac Low Low Dat Pro Fac Was Fac Damage Taken 2352 | . 212 102 521 107 . . 1116 98 . 137 . 59 . . . Core 379 | . 38 27 75 . . . 124 52 . 63 . . . . . Absorbed by Shields . | . . . . . . . . . . . . . . . . Core Remaining (%) 83 | 100 . 74 . . . 81 77 . . . . 83 . . . Volleys Fired 178 | 7 23 12 52 . . 6 74 . . . . . . 4 . Largest 2 | 2 2 2 2 . . 2 2 . . . . . . 1 . Hottest 122 | 70 100 95 95 . . 46 122 . . . . . . 57 . Shots Fired 331 | 14 46 18 98 . . 12 139 . . . . . . 4 . Gun 258 | 14 38 1 62 . . 12 131 . . . . . . . . Cannon 53 | . 8 11 30 . . . . . . . . . . 4 . Launcher 20 | . . 6 6 . . . 8 . . . . . . . . Special . | . . . . . . . . . . . . . . . . Kinetic 212 | 7 20 6 77 . . 12 86 . . . . . . 4 . Thermal 99 | 7 26 6 15 . . . 45 . . . . . . . . Explosive 20 | . . 6 6 . . . 8 . . . . . . . . Electromagnetic . | . . . . . . . . . . . . . . . . Robot Hit Streak 21 | 6 6 6 21 . . 5 13 . . . . . . 1 . Robot Miss Streak 6 | 3 6 2 4 . . 1 3 . . . . . . 1 . Penetration Max 1 | . . . . . . . . . . . . . . 1 . Secondary Targets 4 | . 1 . 1 . . . 2 . . . . . . . . Max Gunslinging Chain 1 | . 1 . 1 . . . 1 . . . . . . . . Shots Hit Robots 259 | 10 26 8 64 . . 9 88 21 4 2 . . 25 2 . Core Hits 147 | 4 16 8 41 . . 2 55 11 1 1 . . 8 . . Critical Hits 4 | . 1 . . . . . . . . . . . 1 2 . Critical Kills 1 | . . . . . . . . . . . . . 1 . . Critical Parts Destroyed 2 | . 1 . . . . . . . . . . . . 1 . Melee Attacks 210 | . . . . . . . . 55 10 25 . 22 94 . 4 Impact . | . . . . . . . . . . . . . . . . Slashing 201 | . . . . . . . . 51 8 25 . 22 91 . 4 Piercing . | . . . . . . . . . . . . . . . . Sneak Attacks 27 | . . . . . . . . 13 3 . . . 11 . . Combat Hostiles . | . . . . . . . . . . . . . . . . Follow-up Attacks . | . . . . . . . . . . . . . . . . Damage Inflicted 8370 | 107 362 609 1804 . . 150 2377 1307 121 66 . . 1396 71 . Guns 2618 | 107 255 12 649 . . 150 1445 . . . . . . . . Cannons 734 | . 107 176 380 . . . . . . . . . . 71 . Explosions 2128 | . . 421 775 . . . 932 . . . . . . . . Melee 2890 | . . . . . . . . 1307 121 66 . . 1396 . . Ramming . | . . . . . . . . . . . . . . . . Kinetic 2172 | 46 172 88 800 . . 150 845 . . . . . . 71 . Thermal 1213 | 61 190 133 229 . . . 600 . . . . . . . . Explosive 2095 | . . 388 775 . . . 932 . . . . . . . . Electromagnetic . | . . . . . . . . . . . . . . . . Impact . | . . . . . . . . . . . . . . . . Slashing 2890 | . . . . . . . . 1307 121 66 . . 1396 . . Piercing . | . . . . . . . . . . . . . . . . Highest Corruption 1 | . . . . . . . 1 1 1 1 1 1 . . . Average Corruption 1 | . . . . . . . 1 1 1 1 1 1 . . . Corruption Purged 1 | . . . . . . . . . . . 1 . . . . Effects 4 | . . . . . . . 1 2 . 1 . . . . . Message Errors 2 | . . . . . . . . 1 . 1 . . . . . Energy Discharges 1 | . . . . . . . . 1 . . . . . . . Data Loss (minor) 1 | . . . . . . . 1 . . . . . . . . Overload Shots . | . . . . . . . . . . . . . . . . Overflow Damage 654 | . . 16 45 . . . 36 178 82 5 . . 292 . . Projectiles . | . . . . . . . . . . . . . . . . Explosions 97 | . . 16 45 . . . 36 . . . . . . . . Melee 557 | . . . . . . . . 178 82 5 . . 292 . . Knockbacks 5 | . 2 2 1 . . . . . . . . . . . . Impact . | . . . . . . . . . . . . . . . . Kinetic 4 | . 1 2 1 . . . . . . . . . . . . Secondary 1 | . 1 . . . . . . . . . . . . . . Self-Inflicted Damage 129 | . . 30 56 . . . 43 . . . . . . . . Shots 4 | . . 1 2 . . . 1 . . . . . . . . Rammed . | . . . . . . . . . . . . . . . . Targets Rammed . | . . . . . . . . . . . . . . . . Kicked . | . . . . . . . . . . . . . . . . Crushed . | . . . . . . . . . . . . . . . . Highest Temperature 186 | 90 180 99 121 . . . 186 7 7 . . . 3 76 . Average Temperature 45 | 48 50 40 37 . . . 52 5 5 . . . 3 34 . Received Heat Transfer 567 | . 75 . 123 . . . 369 . . . . . . . . Siege Activations . | . . . . . . . . . . . . . . . . Robots Corrupted . | . . . . . . . . . . . . . . . . Combat Hostiles . | . . . . . . . . . . . . . . . . Parts Fried . | . . . . . . . . . . . . . . . . Impact Corruptions . | . . . . . . . . . . . . . . . . Robots Melted . | . . . . . . . . . . . . . . . . Combat Hostiles . | . . . . . . . . . . . . . . . . Parts Melted 4 | 1 3 . . . . . . . . . . . . . . Heat Transferred 2603 | 185 555 272 481 . . . 1110 . . . . . . . . Parts Sabotaged . | . . . . . . . . . . . . . . . . Parts Stolen . | . . . . . . . . . . . . . . . . Parts Stripped . | . . . . . . . . . . . . . . . . Power Chain Reactions . | . . . . . . . . . . . . . . . . Missiles Intercepted . | . . . . . . . . . . . . . . . . Alert | -11 -10 -10 -9 -9 -9 -8 -8 -7 -7 -7 -7 -6 -6 -6 -6 ------- Run | Scr Mat Min Mat Min Exi Min Mat Fac Low Low Dat Pro Fac Was Fac Peak Influence 540 | 5 178 224 540 161 . 10 531 365 . . . . 426 107 4 Average Influence 188 | 1 58 80 360 155 . 6 147 276 . . . . 210 76 3 Maximum Alert Level 2 | . . 1 2 . . . 2 1 . . . . 2 . . Low Security (%) 56 | 100 100 92 10 100 . 100 80 11 . . . . 33 100 100 Level 1 30 | . . 7 45 . . . 10 88 . . . . 46 . . Level 2 12 | . . . 43 . . . 9 . . . . . 19 . . Level 3 . | . . . . . . . . . . . . . . . . Level 4 . | . . . . . . . . . . . . . . . . Level 5 . | . . . . . . . . . . . . . . . . High Security . | . . . . . . . . . . . . . . . . Max Security . | . . . . . . . . . . . . . . . . Squads Dispatched 4 | . . . 1 . . . . 2 . . . . 1 . . Investigation 1 | . . . . . . . . 1 . . . . . . . Extermination 2 | . . . . . . . . 1 . . . . 1 . . Reinforcement 1 | . . . 1 . . . . . . . . . . . . Assault . | . . . . . . . . . . . . . . . . Garrison . | . . . . . . . . . . . . . . . . Intercept . | . . . . . . . . . . . . . . . . Construction Impeded . | . . . . . . . . . . . . . . . . Haulers Reinforced . | . . . . . . . . . . . . . . . . Stealth | -11 -10 -10 -9 -9 -9 -8 -8 -7 -7 -7 -7 -6 -6 -6 -6 --------- Run | Scr Mat Min Mat Min Exi Min Mat Fac Low Low Dat Pro Fac Was Fac Distress Signals 7 | . 2 . 2 . . . 2 1 . . . . . . . Communications Jammed . | . . . . . . . . . . . . . . . . Distress Signals . | . . . . . . . . . . . . . . . . Times Spotted 119 | . 10 7 29 7 . . 37 9 . 6 . 3 5 6 . Peak Tracking Total 17 | . 3 3 5 17 . . 7 2 . 4 . 3 3 6 . Tactical Retreats 8 | . 1 2 . . . . 1 1 . 2 . . . 1 . Traps | -11 -10 -10 -9 -9 -9 -8 -8 -7 -7 -7 -7 -6 -6 -6 -6 ------- Run | Scr Mat Min Mat Min Exi Min Mat Fac Low Low Dat Pro Fac Was Fac Traps Triggered 2 | . . . . . . . . 1 . . . . 1 . . Indirectly . | . . . . . . . . . . . . . . . . Trap Hack Attempts . | . . . . . . . . . . . . . . . . Triggered . | . . . . . . . . . . . . . . . . Disarmed . | . . . . . . . . . . . . . . . . Reprogrammed . | . . . . . . . . . . . . . . . . Reused . | . . . . . . . . . . . . . . . . Traps Extracted . | . . . . . . . . . . . . . . . . Installed . | . . . . . . . . . . . . . . . . Triggered 4 | . . . . . . . . . 4 . . . . . . Machines | -11 -10 -10 -9 -9 -9 -8 -8 -7 -7 -7 -7 -6 -6 -6 -6 ---------- Run | Scr Mat Min Mat Min Exi Min Mat Fac Low Low Dat Pro Fac Was Fac Machines Disabled 11 | . . 4 1 . . . 5 1 . . . . . . . Max in Single Turn 4 | . . 4 1 . . . 2 1 . . . . . . . Garrison Access 3 | . . . . . . . . 1 . . . . 2 . . Machines Sabotaged . | . . . . . . . . . . . . . . . . Garrisons Compromised . | . . . . . . . . . . . . . . . . Overloaded Fab Kills . | . . . . . . . . . . . . . . . . Fab Network Shutdowns 1 | . . . . . . . . . . . . . 1 . . Hacking | -11 -10 -10 -9 -9 -9 -8 -8 -7 -7 -7 -7 -6 -6 -6 -6 --------- Run | Scr Mat Min Mat Min Exi Min Mat Fac Low Low Dat Pro Fac Was Fac Machines Accessed 59 | . 5 . 10 . 5 . 4 7 1 . 4 1 22 . . Terminals 39 | . 5 . 9 . . . 4 6 . . . 1 14 . . Fabricators 3 | . . . . . . . . . . . . . 3 . . Repair Stations 1 | . . . . . . . . . . . . . 1 . . Recycling Units . | . . . . . . . . . . . . . . . . Scanalyzers 2 | . . . 1 . . . . . . . . . 1 . . Garrison Access 4 | . . . . . . . . 1 . . . . 3 . . Total Hacks 215 | . 15 . 28 . 49 . 13 18 1 . 22 4 65 . . Successful 150 | . 8 . 12 . 49 . 9 7 1 . 22 . 42 . . Failed 65 | . 7 . 16 . . . 4 11 . . . 4 23 . . Catastrophic 3 | . . . . . . . . 1 . . . 1 1 . . Database Lockouts . | . . . . . . . . . . . . . . . . Manual 48 | . 3 . 8 . 1 . 6 7 . . . 4 19 . . Terminals 106 | . 15 . 26 . . . 13 16 . . . 4 32 . . Fabricators 12 | . . . . . . . . . . . . . 12 . . Repair Stations 8 | . . . . . . . . . . . . . 8 . . Recycling Units . | . . . . . . . . . . . . . . . . Scanalyzers 9 | . . . 2 . . . . . . . . . 7 . . Garrison Access 8 | . . . . . . . . 2 . . . . 6 . . Terminal Hacks 111 | . 6 . 8 . 49 . 7 6 1 . 22 . 12 . . Record 59 | . . . . . 48 . . . . . 11 . . . . Part Schematic 4 | . . . . . . . . . . . 4 . . . . Robot Schematic 4 | . . . . . . . . . . . 4 . . . . Prototype ID Bank 14 | . 3 . 2 . . . 1 1 . . 3 . 4 . . Open Door 1 | . . . . . . . . . 1 . . . . . . Branch Access Points 2 | . . . 1 . . . . 1 . . . . . . . Terminal Index 2 | . . . 1 . . . . . . . . . 1 . . Unreport Threat 3 | . 1 . . . . . 1 . . . . . 1 . . Locate Traps 6 | . 1 . 1 . . . 1 2 . . . . 1 . . Disarm Traps 1 | . . . . . . . 1 . . . . . . . . Recall Extermination 2 | . . . . . . . . 1 . . . . 1 . . Hauler Manifests 3 | . . . 1 . . . 1 1 . . . . . . . Zone Layout 9 | . 1 . 2 . . . 2 . . . . . 4 . . EX-Prototype ID Bank 1 | . . . . . 1 . . . . . . . . . . Fabricator Hacks 8 | . . . . . . . . . . . . . 8 . . Load Schematic 3 | . . . . . . . . . . . . . 3 . . Build 5 | . . . . . . . . . . . . . 5 . . Repair Station Hacks 8 | . . . . . . . . . . . . . 8 . . Scan Component 4 | . . . . . . . . . . . . . 4 . . Repair 4 | . . . . . . . . . . . . . 4 . . Recycling Unit Hacks . | . . . . . . . . . . . . . . . . Scanalyzer 7 | . . . 2 . . . . . . . . . 5 . . Insert Component 3 | . . . 1 . . . . . . . . . 2 . . Analyze 4 | . . . 1 . . . . . . . . . 3 . . Garrison Access Hacks 3 | . . . . . . . . 1 . . . . 2 . . Seal Access 3 | . . . . . . . . 1 . . . . 2 . . Unauthorized Hacks 41 | . 5 . 9 . . . 5 1 . . . . 21 . . Terminals 11 | . 2 . 2 . . . 2 . . . . . 5 . . Track 2 | . 1 . . . . . 1 . . . . . . . . Assimilate 1 | . . . . . . . . . . . . . 1 . . Botnet 8 | . 1 . 2 . . . 1 . . . . . 4 . . Fabricators 2 | . . . . . . . . . . . . . 2 . . Prioritize 1 | . . . . . . . . . . . . . 1 . . Siphon 1 | . . . . . . . . . . . . . 1 . . Repair Stations . | . . . . . . . . . . . . . . . . Recycling Units . | . . . . . . . . . . . . . . . . Scanalyzers . | . . . . . . . . . . . . . . . . Garrison Access . | . . . . . . . . . . . . . . . . Data Cores Recovered 3 | . 1 . 1 . . . . 1 . . . . . . . Used . | . . . . . . . . . . . . . . . . Hacking Detections 34 | . 3 . 8 . . . 2 6 . . . 1 14 . . Full Trace Events 1 | . . . . . . . . 1 . . . . . . . Feedback Events . | . . . . . . . . . . . . . . . . Feedback Blocked . | . . . . . . . . . . . . . . . . Robot Schematics Acquired 4 | . . . . . . . . . . . 4 . . . . Robots Built . | . . . . . . . . . . . . . . . . Matter . | . . . . . . . . . . . . . . . . Time . | . . . . . . . . . . . . . . . . Total Robot Build Rating . | . . . . . . . . . . . . . . . . Part Schematics Acquired 7 | . . . 1 . . . . . . . 4 . 2 . . Parts Built 4 | . . . . . . . . . . . . . 4 . . Matter 754 | . . . . . . . . . . . . . 754 . . Time 356 | . . . . . . . . . . . . . 356 . . Total Part Build Rating 26 | . . . . . . . . . . . . . 26 . . Parts Repaired 4 | . . . . . . . . . . . . . 4 . . Time 166 | . . . . . . . . . . . . . 166 . . Parts Recycled . | . . . . . . . . . . . . . . . . Recycled Matter . | . . . . . . . . . . . . . . . . Retrieved Matter . | . . . . . . . . . . . . . . . . Retrieved Components . | . . . . . . . . . . . . . . . . Parts Scanalyzed 3 | . . . 1 . . . . . . . . . 2 . . Part Schematics Acquired 3 | . . . 1 . . . . . . . . . 2 . . Parts Damaged . | . . . . . . . . . . . . . . . . Bothacking | -11 -10 -10 -9 -9 -9 -8 -8 -7 -7 -7 -7 -6 -6 -6 -6 ------------ Run | Scr Mat Min Mat Min Exi Min Mat Fac Low Low Dat Pro Fac Was Fac Used RIF Installer . | . . . . . . . . . . . . . . . . Robots Hacked 5 | . . . . . . . . 1 1 . . . 3 . . Non-combat 5 | . . . . . . . . 1 1 . . . 3 . . Combat . | . . . . . . . . . . . . . . . . Robot Hacks Applied 6 | . . . . . . . . 2 1 . . . 3 . . parse_system 1 | . . . . . . . . . 1 . . . . . . no_distress 2 | . . . . . . . . 1 . . . . 1 . . find_chute 2 | . . . . . . . . . . . . . 2 . . find_fabricator 1 | . . . . . . . . 1 . . . . . . . Relay Couplers Released . | . . . . . . . . . . . . . . . . Robots Rewired . | . . . . . . . . . . . . . . . . Allies Hacked . | . . . . . . . . . . . . . . . . Hacks Repelled . | . . . . . . . . . . . . . . . . Allies | -11 -10 -10 -9 -9 -9 -8 -8 -7 -7 -7 -7 -6 -6 -6 -6 -------- Run | Scr Mat Min Mat Min Exi Min Mat Fac Low Low Dat Pro Fac Was Fac Total Allies 24 | . . 2 . . . . . . . . . 1 1 20 . Largest Group 19 | . . 2 2 . . . . . . . . 1 1 19 . Highest-Rated Group 696 | . . 54 54 . . . . . . . . 94 26 696 . Highest-Rated Ally 94 | . . 31 31 . . . . . . . . 94 26 50 . Total Orders . | . . . . . . . . . . . . . . . . Ally Attacks 101 | . . 1 22 . . . . . . . . 2 . 76 . Total Damage 3452 | . . 21 296 . . . . . . . . 91 . 3044 . Kills 16 | . . 1 7 . . . . . . . . . . 8 . Allies Corrupted . | . . . . . . . . . . . . . . . . Allies Melted . | . . . . . . . . . . . . . . . . Intel | -11 -10 -10 -9 -9 -9 -8 -8 -7 -7 -7 -7 -6 -6 -6 -6 ------- Run | Scr Mat Min Mat Min Exi Min Mat Fac Low Low Dat Pro Fac Was Fac Robot Analysis Total . | . . . . . . . . . . . . . . . . Derelict Logs Recovered 2 | . . . . . . . . . . . . 2 . . . Drone Launches . | . . . . . . . . . . . . . . . . Drone Recoveries . | . . . . . . . . . . . . . . . . Exploration | -11 -10 -10 -9 -9 -9 -8 -8 -7 -7 -7 -7 -6 -6 -6 -6 ------------- Run | Scr Mat Min Mat Min Exi Min Mat Fac Low Low Dat Pro Fac Was Fac Turns Passed 7676 | 70 471 455 949 414 255 69 1100 727 352 187 38 510 1512 529 38 Spaces Moved 9389 | 46 393 409 776 351 239 42 732 1654 529 368 79 593 2673 404 101 Core 21 | 21 . . . . . . . . . . . . . . . Treads . | . . . . . . . . . . . . . . . . Legs . | . . . . . . . . . . . . . . . . Wheels 2967 | 25 393 409 776 351 239 42 732 . . . . . . . . Hover . | . . . . . . . . . . . . . . . . Flight 6401 | . . . . . . . . 1654 529 368 79 593 2673 404 101 Fastest Speed 23 | 50 90 100 90 106 106 106 100 27 27 27 27 26 26 23 26 Average Speed 50 | 79 91 100 95 106 106 106 109 27 27 27 27 26 26 25 26 Slowest Speed 130 | 100 100 100 106 106 106 106 130 27 27 27 27 27 26 26 26 Overloaded Moves 59 | . . . . . . . . . . . . . . 59 . Propulsion Burnouts . | . . . . . . . . . . . . . . . . Robots Hopped 7 | . . . . . . . . 4 2 . . . 1 . . Cave-ins Triggered 1 | . . . . . . . . . . . . 1 . . . Exploration Rate (%) 55 | 4 61 90 66 64 62 13 80 34 62 49 70 58 70 95 6 Regions Visited 15 Branch Regions 8 Pre-discovered Areas 3 | . . . . . 1 . . . . . 1 1 . . . Known Exits Taken 6 | . . . 1 . . . . 1 1 1 1 1 . . . Unknown Exits Taken 7 | 1 1 1 . 1 1 1 1 . . . . . . . . Scrap Searched 16 | . . 1 . 1 . . . . 3 8 . 3 . . . Spaces Dug 150 | . . . . . . . . 31 6 21 . 22 66 . 4 Terrain Destroyed 330 | . . 82 55 . . . 42 31 6 21 . 22 66 1 4 Melee 150 | . . . . . . . . 31 6 21 . 22 66 . 4 Projectile 2 | . . . . . . . 1 . . . . . . 1 . AOE 178 | . . 82 55 . . . 41 . . . . . . . . Actions | -11 -10 -10 -9 -9 -9 -8 -8 -7 -7 -7 -7 -6 -6 -6 -6 --------- Run | Scr Mat Min Mat Min Exi Min Mat Fac Low Low Dat Pro Fac Was Fac Total 11716 | 65 460 434 883 392 240 54 909 1858 720 417 93 909 3353 822 107 Wait 1671 | . 3 5 . 40 . . 52 113 181 23 13 292 546 403 . Move 9360 | 45 392 408 775 350 238 41 731 1645 524 367 78 591 2671 403 101 Hop 7 | . . . . . . . . 4 2 . . . 1 . . Pick Up 82 | 7 19 1 18 . 1 1 14 7 . . . . 12 1 1 Fast Attach 29 | 2 2 . 4 . . . 8 1 . 1 . . 9 2 . Attach 33 | 4 3 . 4 . . . 2 14 . . . 2 4 . . Detach 3 | . . . . . . . . 1 . . . . 2 . . Swap 54 | . 7 7 15 2 1 3 5 2 3 . 2 . 1 6 . Drop 88 | . 11 1 15 . . 3 23 16 . 1 . 1 13 3 1 Fire 178 | 7 23 12 52 . . 6 74 . . . . . . 4 . Melee 210 | . . . . . . . . 55 10 25 . 22 94 . 4 Ram . | . . . . . . . . . . . . . . . . Kick . | . . . . . . . . . . . . . . . . Crush . | . . . . . . . . . . . . . . . . Escape Stasis 1 | . . . . . . . . . . . . 1 . . . Rewire . | . . . . . . . . . . . . . . . . Trap . | . . . . . . . . . . . . . . . . Miscellaneous . | . . . . . . . . . . . . . . . . Route ------- -11/Scrapyard -10/Materials (discovered 2 exits: *Mat / [*Min]) -10/Mines (discovered 2 exits: *Mat x2) -9/Materials (discovered 5 exits: *Mat x3 / *Min / *Sto) -9/Mines (discovered 2 exits: *Mat / *Exi) -9/Exiles -8/Mines -8/Materials (discovered 3 exits: *Fac x3) -7/Factory (discovered 3 exits: *Fac / *Low x2) -7/Lower Caves -7/Lower Caves -7/Data Miner -6/Proximity Caves -6/Factory (discovered 4 exits: *Fac x2 / *Low x2) -6/Waste -6/Factory History --------- Turn | Location | Event 15 | -11/Scrapyard | Discovered new exit (range 16) 71 | -11/Scrapyard | Entered Materials 329 | -10/Materials | Build established: Mutant 386 | -10/Materials | Discovered new exit (range 8) 523 | -10/Materials | Discovered new exit (range 11) 542 | -10/Materials | Entered Mines 900 | -10/Mines | Discovered new exit (range 6) 931 | -10/Mines | Discovered new exit (range 14) 997 | -10/Mines | Entered Materials 997 | -9/Materials | Accompanied by 2 allies 997 | -9/Materials | Evolved 2 slots: Propulsion x1, Utility x1 1002 | -9/Materials | Led the pair of lost Derelicts to an unsafe place 1165 | -9/Materials | Discovered new exit (range 5) 1382 | -9/Materials | Build established: Scavenger-Mutant 1420 | -9/Materials | Discovered new exit (range 4) 1636 | -9/Materials | Discovered new exit (range 7) 1691 | -9/Materials | Build established: Hauler-Mutant 1818 | -9/Materials | Identified exit to Mines 1818 | -9/Materials | Identified exit to Storage 1831 | -9/Materials | Discovered new exit (range 16) 1946 | -9/Materials | Entered Mines 1967 | -9/Mines | Assembled infested the area 1999 | -9/Mines | Met a Derelict bent on vengeance 2170 | -9/Mines | Discovered new exit (range 6) 2236 | -9/Mines | Discovered new exit (range 5) 2360 | -9/Mines | Entered Exiles 2386 | -9/Exiles | Met 8R-AWN 2406 | -9/Exiles | Met EX-HEX 2435 | -9/Exiles | Met EX-BIN 2446 | -9/Exiles | Aligned with FarCom system 2447 | -9/Exiles | Given EX-Vault access code 2492 | -9/Exiles | Opened EX-Vault 2498 | -9/Exiles | Found Gui. Plasma Cannon 2523 | -9/Exiles | Warned to stay clear of 0b10 Research branches 2555 | -9/Exiles | Met EX-DEC 2565 | -9/Exiles | Learned location of Zion (-6) 2605 | -9/Exiles | Discovered new exit (range 10) 2615 | -9/Exiles | Left Exiles lab with Gui. Plasma Cannon 2615 | -9/Exiles | Entered Mines 2656 | -8/Mines | Discovered new exit (range 9) 2684 | -8/Mines | Entered Materials 2684 | -8/Materials | Evolved 2 slots: Propulsion x1, Utility x1 3023 | -8/Materials | Discovered new exit (range 15) 3277 | -8/Materials | Discovered new exit (range 8) 3656 | -8/Materials | Discovered new exit (range 14) 3784 | -8/Materials | Entered Factory 3784 | -7/Factory | Evolved 2 slots: Power x1, Utility x1 3826 | -7/Factory | Discovered new exit (range 7) 3827 | -7/Factory | Identified exit to Lower Caves 4140 | -7/Factory | Discovered new exit (range 8) 4142 | -7/Factory | Identified exit to Factory 4228 | -7/Factory | Build established: Hacker-Sprinter 4511 | -7/Factory | Entered Lower Caves 4626 | -7/Lower Caves | Encountered a Warlord checkpoint 4852 | -7/Lower Caves | Discovered new exit (range 4) 4854 | -7/Lower Caves | Identified exit to Lower Caves 4863 | -7/Lower Caves | Entered another Lower Caves area 4973 | -7/Lower Caves | Discovered new exit (range 10) 4975 | -7/Lower Caves | Identified exit to Data Miner 4976 | -7/Lower Caves | Encountered a Warlord checkpoint 5050 | -7/Lower Caves | Entered Data Miner 5050 | -7/Data Miner | Discovered new exit (range 6) 5056 | -7/Data Miner | Met Data Miner 5061 | -7/Data Miner | Learned location of Section 7 (-2) 5061 | -7/Data Miner | Acquired the access code to Warlord's prototype stash 5065 | -7/Data Miner | Received God Mode back door access code from Data Miner 5071 | -7/Data Miner | Identified exit to Proximity Caves 5088 | -7/Data Miner | Entered Proximity Caves 5559 | -6/Proximity Caves | Discovered exit to Factory (range 15) 5589 | -6/Proximity Caves | Escorted by Enhanced Grunt 5589 | -6/Proximity Caves | Crushed by falling debris 5598 | -6/Proximity Caves | Entered Factory 5598 | -6/Factory | Evolved 2 slots: Utility x2 5599 | -6/Factory | Identified exit to Lower Caves 5743 | -6/Factory | Fabricated Lgt. Particle Reactor (x2) 5747 | -6/Factory | Fabricated Exp. Sensor Array? 5836 | -6/Factory | Fabricated Lgt. Regenerative Plating (x1) 6099 | -6/Factory | Local fabrication network quarantined 6131 | -6/Factory | Discovered new exit (range 12) 6251 | -6/Factory | Repaired Imp. Flight Unit 6304 | -6/Factory | Repaired Imp. Flight Unit 6343 | -6/Factory | Repaired Lgt. Deuterium Engine 6371 | -6/Factory | Repaired Structural Scanner 6400 | -6/Factory | Discovered exit to Lower Caves (range 5) 6652 | -6/Factory | Discovered new exit (range 4) 6653 | -6/Factory | Identified exit to Factory 7110 | -6/Factory | Manually triggered Chute Trap 7110 | -6/Factory | Sucked down chute 7110 | -6/Factory | Entered Waste 7111 | -6/Waste | Met a frightened Derelict 7114 | -6/Waste | Spotted C-40 Crusher 7115 | -6/Waste | Spotted C-40 Crusher 7119 | -6/Waste | Spotted C-40 Crusher 7120 | -6/Waste | 1 allies followed down the chute 7122 | -6/Waste | Spotted C-40 Crusher 7122 | -6/Waste | Spotted C-40 Crusher 7123 | -6/Waste | Spotted C-40 Crusher 7124 | -6/Waste | Discovered new exit (range 11) 7127 | -6/Waste | Identified exit to Factory 7153 | -6/Waste | Warlord forces began an assault 7169 | -6/Waste | Allies destroyed C-40 Crusher 7190 | -6/Waste | Allies destroyed C-40 Crusher 7190 | -6/Waste | Allies destroyed C-40 Crusher 7196 | -6/Waste | Allies destroyed C-40 Crusher 7639 | -6/Waste | Entered Factory 7677 | -6/Factory | Self-destructed Last Messages --------------- 07190_ C-40 Crusher suffers critical hit. 07190_ Destroyed Compactor. 07190_ C-40 Crusher destroyed. 07190_ 152 Matter crushed. 07190_ Damper Plating crushed. 07194_ HV Slug penetrates C-40 Crusher. 07194_ C-40 Crusher suffers critical hit. 07194_ HV Slug penetrates C-40 Crusher. 07195_ The unstable cave ceiling collapses. 07196_ C-40 Crusher destroyed. 07198_ Acquired 78 matter. 07201_ The unstable cave ceiling collapses. 07487_ EO-LAR(g) crushed by falling debris. 07492_ The unstable cave ceiling collapses. LOCATION=FACTORY GOAL=ESCAPE 07639_ Receiving FarCom transmissions... 07663_ Dropped Bore Cannon. 07664_ Acquired Imp. Hacking Suite. 07677_ Connecting with Fabricator... Map ----- +----------------------------------------------------+ | ?????????????????????????????????????????????????? | | ?????????????????????????????????????????????????? | | ?????????????????????????????????????????????????? | | ?????????????????????????????????????????????????? | | ?????????????????????????????????????????????????? | | ######???????????????????????????????????????????? | | ??????????????????????????????????????????? | | ??????????????????????????????????????????? | | ??????????????????????????????????????????? | | ??????????????????????????????????????????? | | ??????????????????????????????????????????? | | ###########??????????????????????????????????????? | | # #??????????????????????????????????????? | | + #??????????????????????????????????????? | | # +??????????????????????????????????????? | | # #??????????????????????????????????????? | | [ # #???????????????????Y??????????????????? | | # #??????????????????????????????????????? | | # #??????????????????????????????????????? | | # #??????##############??????????????????? | | " #????? #??????????????????? | | #### #????? #??????????????????? | | ???# #? ???k""""" """ #??????????????????? | | ???# # """"" """ #??????????????????? | | ???# # """ """ #??????????????????? | | ???#####+## @F" #??????????????????? | | ???????# ## """ #??????????????????? | | ???????# ## !/ "" #########???g??????? | | ???????# ## !/ # * ! #?????g????? | | ???????# ## // # ?????g?????? | | ???????# ## # " " " #??????????? | | ???????# ## # " " " #??????????? | | ???????# #?############## # " " " #??????????? | | ???????# #?# # # " " " #??????????? | | ???????# #?# # # " " " #??????????? | | ????####+### + + " " " #??????????? | | ????# # # # " " " #??????????? | | ????#! # # # " " " #??????????? | | ????# # # # " " " #??????????? | | ????# # # # ???????????? | | ????# ] # # #########??????????? | | ????# # # ???? | | ????# """" # # ???? | | ????+ """" + # ???? | | ????# """" # # ????? | | ????# """" #########+#### ^ ????? | | ????# """" #????????????# #######?????? | | ????# """" #????????????# #???????????? | | ?????? #????????????# #???????????? | | ?????? ! #???????????? #???????????? | +----------------------------------------------------+ Best States ------------- Heat Dissipation 37 Energy Generation 27 Energy Capacity 280 Matter Stores 300 Matter Capacity 300 Sight Range 22 Robot Scan Range 20 Terrain Scan Density 10 Armor Coverage 225 Propulsion Shielding 33 Evasion (%) 64 Offensive Hacking 20 Defensive Hacking 22 Item Schematics ----------------- Structural Scanner | -9/Materials | Scanalyzed Combat Drone Bay | -7/Data Miner | Free Lgt. Regenerative Plating | -7/Data Miner | Free Cmb. Gravmag System | -7/Data Miner | Free Exp. Sensor Array | -7/Data Miner | Free Adv. Terrain Scan Processor | -6/Factory | Scanalyzed Cld. VTOL Module | -6/Factory | Scanalyzed Robot Schematics ------------------ S-27 Virus | -7/Data Miner | Free G-50 Soldier | -7/Data Miner | Free P-70 Sage | -7/Data Miner | Free I-36 Angel | -7/Data Miner | Free Fabricated ------------ Lgt. Particle Reactor | x2 | -6/Factory | Preloaded Exp. Sensor Array | x1 | -6/Factory Lgt. Regenerative Plating | x1 | -6/Factory Alien Tech Used ----------------- None Achievements -------------- None Challenges ------------ None Game ------ Seed CombatDecoderMachine Manual? 0 Play Time 01:44:46 Cumulative 672.4 hours Start 2020.02.28 @ 21:45:41 End 2020.03.02 @ 17:08:05 Sessions 3 Manual Loads 0 Difficulty Rogue Special Mode None Game No. 370 Rogue 370 Adventurer 0 Explorer 0 Win Type - Total 52 Types 29/2/12/5/1/1/2 Lore% 90 Gallery% 86 Achievement% 71 Wizard Run 0 Options --------- ASCII 0 Keyboard 0 Movement Mouse Keybinds 0 Fullscreen 0 Font 32/SmallcapsGlow Map View 76x50 Tactical HUD 1 Map Filters NONE Filters NONE Steam 0 RUN: a2ec54ce-cabb-44ec-9aea-be3b4755a2df